{"text_format":"3","workbook":"xlsx","n_sheets":6,"sheets":["Painel","Vendas","Rendimento","Despesas","Impostos","Categorias"],"not_rendered":{"images":1,"defined_names":34},"read":"whole","date_system":"1900"}

{"sheet":"Painel","index":0,"n_rows":19,"n_cols":8,"rows_kept":19,"merged":[[0,2,0,4],[0,6,3,7],[4,1,4,7]]}
[null,"Demonstrativo de lucros e perdas","Para [mês ou ano] com término em [dia-mês-ano]"]
[null,"Nome da empresa","Expresso em milhares"]
[null,"Margem bruta atual [L/J]",{"$f":"IFERROR(IF(Total_do_lucro_bruto=0,\"-\",Total_do_lucro_bruto/Total_da_receita_de_vendas),\"-\")","v":"-"}]
[null,"Rendimento sobre as vendas atual [T/J]",{"$f":"IFERROR(IF(Lucro_Líquido=0,\"-\",Lucro_Líquido/Total_da_receita_de_vendas),\"-\")","v":"-"}]
[null,"Modificar as categorias nesta planilha pode provocar a quebra das fórmulas. Use a planilha Categoria para adicionar categorias e atualizar as planilhas correspondentes com entradas. Esta planilha será atualizada automaticamente."]
[null,"Resumo","Total do período anterior","Orçamento total","Total atual\nPeríodo","Total do período atual em percentual (%) de vendas","Total da alteração percentual (%) do período anterior","Total da alteração percentual (%) do orçamento"]
[null,"Total da receita de vendas [J]",{"$f":"SUMIFS(ReceitaDeVendas[Período anterior],ReceitaDeVendas[Tipo de receita],\"Receita de vendas\")","v":0},{"$f":"SUMIFS(ReceitaDeVendas[Orçamento],ReceitaDeVendas[Tipo de receita],\"Receita de vendas\")","v":0},{"$f":"SUMIFS(ReceitaDeVendas[Período atual],ReceitaDeVendas[Tipo de receita],\"Receita de vendas\")","v":0},{"$f":"SUMIFS(ReceitaDeVendas[Período atual em percentual (%) de vendas],ReceitaDeVendas[Tipo de receita],\"Receita de vendas\")","v":{"v":0,"d":"0.00%"}},{"$f":"SUMIFS(ReceitaDeVendas[Alteração percentual (%) do período anterior],ReceitaDeVendas[Tipo de receita],\"Receita de vendas\")","v":{"v":0,"d":"0.00%"}},{"$f":"SUMIFS(ReceitaDeVendas[Alteração percentual (%) do orçamento],ReceitaDeVendas[Tipo de receita],\"Receita de vendas\")","v":{"v":0,"d":"0.00%"}}]
[null,"Custo total de vendas [K]",{"$f":"SUMIFS(ReceitaDeVendas[Período anterior],ReceitaDeVendas[Tipo de receita],\"Custo de vendas\")","v":0},{"$f":"SUMIFS(ReceitaDeVendas[Orçamento],ReceitaDeVendas[Tipo de receita],\"Custo de vendas\")","v":0},{"$f":"SUMIFS(ReceitaDeVendas[Período atual],ReceitaDeVendas[Tipo de receita],\"Custo de vendas\")","v":0},{"$f":"SUMIFS(ReceitaDeVendas[Período atual em percentual (%) de vendas],ReceitaDeVendas[Tipo de receita],\"Custo de vendas\")","v":{"v":0,"d":"0.00%"}},{"$f":"SUMIFS(ReceitaDeVendas[Alteração percentual (%) do período anterior],ReceitaDeVendas[Tipo de receita],\"Custo de vendas\")","v":{"v":0,"d":"0.00%"}},{"$f":"SUMIFS(ReceitaDeVendas[Alteração percentual (%) do orçamento],ReceitaDeVendas[Tipo de receita],\"Custo de vendas\")","v":{"v":0,"d":"0.00%"}}]
[null,"Total de despesas com vendas e marketing [M]",{"$f":"SUMIFS(DespesasOperacionais[Período anterior],DespesasOperacionais[Tipo de despesa],\"Vendas e marketing\")","v":0},{"$f":"SUMIFS(DespesasOperacionais[Orçamento],DespesasOperacionais[Tipo de despesa],\"Vendas e marketing\")","v":0},{"$f":"SUMIFS(DespesasOperacionais[Período atual],DespesasOperacionais[Tipo de despesa],\"Vendas e marketing\")","v":0},{"$f":"SUMIFS(DespesasOperacionais[Período atual em percentual (%) de vendas],DespesasOperacionais[Tipo de despesa],\"Vendas e marketing\")","v":{"v":0,"d":"0.00%"}},{"$f":"SUMIFS(DespesasOperacionais[Alteração percentual (%) do período anterior],DespesasOperacionais[Tipo de despesa],\"Vendas e marketing\")","v":{"v":0,"d":"0.00%"}},{"$f":"SUMIFS(DespesasOperacionais[Alteração percentual (%) do orçamento],DespesasOperacionais[Tipo de despesa],\"Vendas e marketing\")","v":{"v":0,"d":"0.00%"}}]
[null,"Total de despesas com pesquisa e desenvolvimento [N]",{"$f":"SUMIFS(DespesasOperacionais[Período anterior],DespesasOperacionais[Tipo de despesa],\"Pesquisa e desenvolvimento\")","v":0},{"$f":"SUMIFS(DespesasOperacionais[Orçamento],DespesasOperacionais[Tipo de despesa],\"Pesquisa e desenvolvimento\")","v":0},{"$f":"SUMIFS(DespesasOperacionais[Período atual],DespesasOperacionais[Tipo de despesa],\"Pesquisa e desenvolvimento\")","v":0},{"$f":"SUMIFS(DespesasOperacionais[Período atual em percentual (%) de vendas],DespesasOperacionais[Tipo de despesa],\"Pesquisa e desenvolvimento\")","v":{"v":0,"d":"0.00%"}},{"$f":"SUMIFS(DespesasOperacionais[Alteração percentual (%) do período anterior],DespesasOperacionais[Tipo de despesa],\"Pesquisa e desenvolvimento\")","v":{"v":0,"d":"0.00%"}},{"$f":"SUMIFS(DespesasOperacionais[Alteração percentual (%) do orçamento],DespesasOperacionais[Tipo de despesa],\"Pesquisa e desenvolvimento\")","v":{"v":0,"d":"0.00%"}}]
[null,"Total de despesas gerais e administrativas [O]",{"$f":"SUMIFS(DespesasOperacionais[Período anterior],DespesasOperacionais[Tipo de despesa],\"Gerais e administrativas\")","v":0},{"$f":"SUMIFS(DespesasOperacionais[Orçamento],DespesasOperacionais[Tipo de despesa],\"Gerais e administrativas\")","v":0},{"$f":"SUMIFS(DespesasOperacionais[Período atual],DespesasOperacionais[Tipo de despesa],\"Gerais e administrativas\")","v":0},{"$f":"SUMIFS(DespesasOperacionais[Período atual em percentual (%) de vendas],DespesasOperacionais[Tipo de despesa],\"Gerais e administrativas\")","v":{"v":0,"d":"0.00%"}},{"$f":"SUMIFS(DespesasOperacionais[Alteração percentual (%) do período anterior],DespesasOperacionais[Tipo de despesa],\"Gerais e administrativas\")","v":{"v":0,"d":"0.00%"}},{"$f":"SUMIFS(DespesasOperacionais[Alteração percentual (%) do orçamento],DespesasOperacionais[Tipo de despesa],\"Gerais e administrativas\")","v":{"v":0,"d":"0.00%"}}]
[null,"Total de outras despesas operacionais [P]",{"$f":"DespesasOperacionais[[#Totals],[Período anterior]]-SUM(C9:C11)","v":0},{"$f":"DespesasOperacionais[[#Totals],[Orçamento]]-SUM(D9:D11)","v":0},{"$f":"DespesasOperacionais[[#Totals],[Período atual]]-SUM(E9:E11)","v":0},{"$f":"DespesasOperacionais[[#Totals],[Período atual em percentual (%) de vendas]]-SUM(F9:F11)","v":{"v":0,"d":"0.00%"}},{"$f":"DespesasOperacionais[[#Totals],[Alteração percentual (%) do período anterior]]-SUM(G9:G11)","v":{"v":0,"d":"0.00%"}},{"$f":"DespesasOperacionais[[#Totals],[Alteração percentual (%) do orçamento]]-SUM(H9:H11)","v":{"v":0,"d":"0.00%"}}]
[null,"Outros rendimentos [S]",{"$f":"Rendimento[[#Totals],[Período anterior]]","v":0},{"$f":"Rendimento[[#Totals],[Orçamento]]","v":0},{"$f":"Rendimento[[#Totals],[Período atual]]","v":0},{"$f":"Rendimento[[#Totals],[Período atual em percentual (%) de vendas]]","v":{"v":0,"d":"0.00%"}},{"$f":"Rendimento[[#Totals],[Alteração percentual (%) do período anterior]]","v":{"v":0,"d":"0.00%"}},{"$f":"Rendimento[[#Totals],[Alteração percentual (%) do orçamento]]","v":{"v":0,"d":"0.00%"}}]
[null,"Total de impostos [T]",{"$f":"Impostos[[#Totals],[Período anterior]]","v":0},{"$f":"Impostos[[#Totals],[Orçamento]]","v":0},{"$f":"Impostos[[#Totals],[Período atual]]","v":0},{"$f":"Impostos[[#Totals],[Período atual em percentual (%) de vendas]]","v":{"v":0,"d":"0.00%"}},{"$f":"Impostos[[#Totals],[Alteração percentual (%) do período anterior]]","v":{"v":0,"d":"0.00%"}},{"$f":"Impostos[[#Totals],[Alteração percentual (%) do orçamento]]","v":{"v":0,"d":"0.00%"}}]
[]
[null,"Lucro bruto [L=J-K]",{"$f":"IFERROR(C7-C8,\"-\")","v":0},{"$f":"IFERROR(D7-D8,\"-\")","v":0},{"$f":"IFERROR(Total_da_receita_de_vendas-Total_do_custo_de_vendas,\"-\")","v":0},{"$f":"IFERROR(IF(Total_da_receita_de_vendas=0,\"0,00%\",Total_do_lucro_bruto/Total_da_receita_de_vendas),\"-\")","v":"0,00%"},{"$f":"IFERROR(IF(C16=Total_do_lucro_bruto,0,IF(Total_do_lucro_bruto>C16,ABS((Total_do_lucro_bruto/C16)-1),IF(AND(Total_do_lucro_bruto<C16,C16<0),-((Total_do_lucro_bruto/C16)-1),(Total_do_lucro_bruto/C16)-1))),\"-\")","v":{"v":0,"d":"0.00%"}},{"$f":"IFERROR(IF(D16=Total_do_lucro_bruto,0,IF(Total_do_lucro_bruto>D16,ABS((Total_do_lucro_bruto/D16)-1),IF(AND(Total_do_lucro_bruto<D16,D16<0),-((Total_do_lucro_bruto/D16)-1),(Total_do_lucro_bruto/D16)-1))),\"-\")","v":{"v":0,"d":"0.00%"}}]
[null,"Total de despesas operacionais [Q=M+N+O+P]",{"$f":"IFERROR(C9+C10+C11+C12,\"-\")","v":0},{"$f":"IFERROR(D9+D10+D11+D12,\"-\")","v":0},{"$f":"IFERROR(Total_de_vendas_e_marketing+Total_de_pesquisa_e_desenvolvimento+Total_geral_e_administrativo+Total_de_outras_despesas,\"-\")","v":0},{"$f":"IFERROR(IF(Total_da_receita_de_vendas=0,\"0,00%\",Total_de_despesas_operacionais/Total_da_receita_de_vendas),\"-\")","v":"0,00%"},{"$f":"IFERROR(IF(C17=Total_de_despesas_operacionais,0,IF(Total_de_despesas_operacionais>C17,ABS((Total_de_despesas_operacionais/C17)-1),IF(AND(Total_de_despesas_operacionais<C17,C17<0),-((Total_de_despesas_operacionais/C17)-1),(Total_de_despesas_operacionais/C17)-1))),\"-\")","v":{"v":0,"d":"0.00%"}},{"$f":"IFERROR(IF(D17=Total_de_despesas_operacionais,0,IF(Total_de_despesas_operacionais>D17,ABS((Total_de_despesas_operacionais/D17)-1),IF(AND(Total_de_despesas_operacionais<D17,D17<0),-((Total_de_despesas_operacionais/D17)-1),(Total_de_despesas_operacionais/D17)-1))),\"-\")","v":{"v":0,"d":"0.00%"}}]
[null,"Resultado operacional [R=L-Q]",{"$f":"IFERROR(C16-C17,\"-\")","v":0},{"$f":"IFERROR(D16-D17,\"-\")","v":0},{"$f":"IFERROR(Total_do_lucro_bruto-Total_de_despesas_operacionais,\"-\")","v":0},{"$f":"IFERROR(IF(Total_da_receita_de_vendas=0,\"0,00%\",Total_do_resultado_operacional/Total_da_receita_de_vendas),\"-\")","v":"0,00%"},{"$f":"IFERROR(IF(C18=Total_do_resultado_operacional,0,IF(Total_do_resultado_operacional>C18,ABS((Total_do_resultado_operacional/C18)-1),IF(AND(Total_do_resultado_operacional<C18,C18<0),-((Total_do_resultado_operacional/C18)-1),(Total_do_resultado_operacional/C18)-1))),\"-\")","v":{"v":0,"d":"0.00%"}},{"$f":"IFERROR(IF(D18=Total_do_resultado_operacional,0,IF(Total_do_resultado_operacional>D18,ABS((Total_do_resultado_operacional/D18)-1),IF(AND(Total_do_resultado_operacional<D18,D18<0),-((Total_do_resultado_operacional/D18)-1),(Total_do_resultado_operacional/D18)-1))),\"-\")","v":{"v":0,"d":"0.00%"}}]
[null,"Lucro líquido [U=R+S-T]",{"$f":"IFERROR(C18+C13-C14,\"-\")","v":0},{"$f":"IFERROR(D18+D13-D14,\"-\")","v":0},{"$f":"Total_do_resultado_operacional+Total_de_outros_rendimentos-Total_de_impostos","v":0},{"$f":"IFERROR(IF(Total_da_receita_de_vendas=0,\"0,00%\",Lucro_Líquido/Total_da_receita_de_vendas),\"-\")","v":"0,00%"},{"$f":"IFERROR(IF(C19=Lucro_Líquido,0,IF(Lucro_Líquido>C19,ABS((Lucro_Líquido/C19)-1),IF(AND(Lucro_Líquido<C19,C19<0),-((Lucro_Líquido/C19)-1),(Lucro_Líquido/C19)-1))),\"-\")","v":{"v":0,"d":"0.00%"}},{"$f":"IFERROR(IF(D19=Lucro_Líquido,0,IF(Lucro_Líquido>D19,ABS((Lucro_Líquido/D19)-1),IF(AND(Lucro_Líquido<D19,D19<0),-((Lucro_Líquido/D19)-1),(Lucro_Líquido/D19)-1))),\"-\")","v":{"v":0,"d":"0.00%"}}]

{"sheet":"Vendas","index":1,"n_rows":13,"n_cols":9,"rows_kept":13,"merged":[[0,7,2,8]]}
[null,{"$f":"Título_da_pasta_de_rabalho","v":"Demonstrativo de lucros e perdas"}]
[null,{"$f":"Nome_Empresa","v":"Nome da empresa"},"Expresso em milhares"]
[null,"Receita de vendas",{"$f":"IFERROR(Receita_de_vendas,\"-\")","v":0}]
[null,"Tipo de receita","Descrição","Período anterior","Orçamento","Período atual","Período atual em percentual (%) de vendas","Alteração percentual (%) do período anterior","Alteração percentual (%) do orçamento"]
[null,"Receita de vendas","Produto/serviço 1",{"$nulls":3},{"$f":"IFERROR(IF(ReceitaDeVendas[[#Totals],[Período atual]]=0,\"-\",ReceitaDeVendas[Período atual]/Receita_de_vendas),\"-\")","v":"-"},{"$f":"IFERROR(IF(ReceitaDeVendas[[#This Row],[Período anterior]]=ReceitaDeVendas[[#This Row],[Período atual]],0,IF(ReceitaDeVendas[[#This Row],[Período atual]]>ReceitaDeVendas[[#This Row],[Período anterior]],ABS((ReceitaDeVendas[[#This Row],[Período atual]]/ReceitaDeVendas[[#This Row],[Período anterior]])-1),IF(AND(ReceitaDeVendas[[#This Row],[Período atual]]<ReceitaDeVendas[[#This Row],[Período anterior]],ReceitaDeVendas[[#This Row],[Período anterior]]<0),-((ReceitaDeVendas[[#This Row],[Período atual]]/ReceitaDeVendas[[#This Row],[Período anterior]])-1),(ReceitaDeVendas[[#This Row],[Período atual]]/ReceitaDeVendas[[#This Row],[Período anterior]])-1))),\"-\")","v":{"v":0,"d":"0.00%"}},{"$f":"IFERROR(IF(ReceitaDeVendas[[#This Row],[Orçamento]]=ReceitaDeVendas[[#This Row],[Período atual]],0,IF(ReceitaDeVendas[[#This Row],[Período atual]]>ReceitaDeVendas[[#This Row],[Orçamento]],ABS((ReceitaDeVendas[[#This Row],[Período atual]]/ReceitaDeVendas[[#This Row],[Orçamento]])-1),IF(AND(ReceitaDeVendas[[#This Row],[Período atual]]<ReceitaDeVendas[[#This Row],[Orçamento]],ReceitaDeVendas[[#This Row],[Orçamento]]<0),-((ReceitaDeVendas[[#This Row],[Período atual]]/ReceitaDeVendas[[#This Row],[Orçamento]])-1),(ReceitaDeVendas[[#This Row],[Período atual]]/ReceitaDeVendas[[#This Row],[Orçamento]])-1))),\"-\")","v":{"v":0,"d":"0.00%"}}]
[null,"Receita de vendas","Produto/serviço 2",{"$nulls":3},{"$f":"IFERROR(IF(ReceitaDeVendas[[#Totals],[Período atual]]=0,\"-\",ReceitaDeVendas[Período atual]/Receita_de_vendas),\"-\")","v":"-"},{"$f":"IFERROR(IF(ReceitaDeVendas[[#This Row],[Período anterior]]=ReceitaDeVendas[[#This Row],[Período atual]],0,IF(ReceitaDeVendas[[#This Row],[Período atual]]>ReceitaDeVendas[[#This Row],[Período anterior]],ABS((ReceitaDeVendas[[#This Row],[Período atual]]/ReceitaDeVendas[[#This Row],[Período anterior]])-1),IF(AND(ReceitaDeVendas[[#This Row],[Período atual]]<ReceitaDeVendas[[#This Row],[Período anterior]],ReceitaDeVendas[[#This Row],[Período anterior]]<0),-((ReceitaDeVendas[[#This Row],[Período atual]]/ReceitaDeVendas[[#This Row],[Período anterior]])-1),(ReceitaDeVendas[[#This Row],[Período atual]]/ReceitaDeVendas[[#This Row],[Período anterior]])-1))),\"-\")","v":{"v":0,"d":"0.00%"}},{"$f":"IFERROR(IF(ReceitaDeVendas[[#This Row],[Orçamento]]=ReceitaDeVendas[[#This Row],[Período atual]],0,IF(ReceitaDeVendas[[#This Row],[Período atual]]>ReceitaDeVendas[[#This Row],[Orçamento]],ABS((ReceitaDeVendas[[#This Row],[Período atual]]/ReceitaDeVendas[[#This Row],[Orçamento]])-1),IF(AND(ReceitaDeVendas[[#This Row],[Período atual]]<ReceitaDeVendas[[#This Row],[Orçamento]],ReceitaDeVendas[[#This Row],[Orçamento]]<0),-((ReceitaDeVendas[[#This Row],[Período atual]]/ReceitaDeVendas[[#This Row],[Orçamento]])-1),(ReceitaDeVendas[[#This Row],[Período atual]]/ReceitaDeVendas[[#This Row],[Orçamento]])-1))),\"-\")","v":{"v":0,"d":"0.00%"}}]
[null,"Receita de vendas","Produto/serviço 3",{"$nulls":3},{"$f":"IFERROR(IF(ReceitaDeVendas[[#Totals],[Período atual]]=0,\"-\",ReceitaDeVendas[Período atual]/Receita_de_vendas),\"-\")","v":"-"},{"$f":"IFERROR(IF(ReceitaDeVendas[[#This Row],[Período anterior]]=ReceitaDeVendas[[#This Row],[Período atual]],0,IF(ReceitaDeVendas[[#This Row],[Período atual]]>ReceitaDeVendas[[#This Row],[Período anterior]],ABS((ReceitaDeVendas[[#This Row],[Período atual]]/ReceitaDeVendas[[#This Row],[Período anterior]])-1),IF(AND(ReceitaDeVendas[[#This Row],[Período atual]]<ReceitaDeVendas[[#This Row],[Período anterior]],ReceitaDeVendas[[#This Row],[Período anterior]]<0),-((ReceitaDeVendas[[#This Row],[Período atual]]/ReceitaDeVendas[[#This Row],[Período anterior]])-1),(ReceitaDeVendas[[#This Row],[Período atual]]/ReceitaDeVendas[[#This Row],[Período anterior]])-1))),\"-\")","v":{"v":0,"d":"0.00%"}},{"$f":"IFERROR(IF(ReceitaDeVendas[[#This Row],[Orçamento]]=ReceitaDeVendas[[#This Row],[Período atual]],0,IF(ReceitaDeVendas[[#This Row],[Período atual]]>ReceitaDeVendas[[#This Row],[Orçamento]],ABS((ReceitaDeVendas[[#This Row],[Período atual]]/ReceitaDeVendas[[#This Row],[Orçamento]])-1),IF(AND(ReceitaDeVendas[[#This Row],[Período atual]]<ReceitaDeVendas[[#This Row],[Orçamento]],ReceitaDeVendas[[#This Row],[Orçamento]]<0),-((ReceitaDeVendas[[#This Row],[Período atual]]/ReceitaDeVendas[[#This Row],[Orçamento]])-1),(ReceitaDeVendas[[#This Row],[Período atual]]/ReceitaDeVendas[[#This Row],[Orçamento]])-1))),\"-\")","v":{"v":0,"d":"0.00%"}}]
[null,"Receita de vendas","Produto/serviço 4",{"$nulls":3},{"$f":"IFERROR(IF(ReceitaDeVendas[[#Totals],[Período atual]]=0,\"-\",ReceitaDeVendas[Período atual]/Receita_de_vendas),\"-\")","v":"-"},{"$f":"IFERROR(IF(ReceitaDeVendas[[#This Row],[Período anterior]]=ReceitaDeVendas[[#This Row],[Período atual]],0,IF(ReceitaDeVendas[[#This Row],[Período atual]]>ReceitaDeVendas[[#This Row],[Período anterior]],ABS((ReceitaDeVendas[[#This Row],[Período atual]]/ReceitaDeVendas[[#This Row],[Período anterior]])-1),IF(AND(ReceitaDeVendas[[#This Row],[Período atual]]<ReceitaDeVendas[[#This Row],[Período anterior]],ReceitaDeVendas[[#This Row],[Período anterior]]<0),-((ReceitaDeVendas[[#This Row],[Período atual]]/ReceitaDeVendas[[#This Row],[Período anterior]])-1),(ReceitaDeVendas[[#This Row],[Período atual]]/ReceitaDeVendas[[#This Row],[Período anterior]])-1))),\"-\")","v":{"v":0,"d":"0.00%"}},{"$f":"IFERROR(IF(ReceitaDeVendas[[#This Row],[Orçamento]]=ReceitaDeVendas[[#This Row],[Período atual]],0,IF(ReceitaDeVendas[[#This Row],[Período atual]]>ReceitaDeVendas[[#This Row],[Orçamento]],ABS((ReceitaDeVendas[[#This Row],[Período atual]]/ReceitaDeVendas[[#This Row],[Orçamento]])-1),IF(AND(ReceitaDeVendas[[#This Row],[Período atual]]<ReceitaDeVendas[[#This Row],[Orçamento]],ReceitaDeVendas[[#This Row],[Orçamento]]<0),-((ReceitaDeVendas[[#This Row],[Período atual]]/ReceitaDeVendas[[#This Row],[Orçamento]])-1),(ReceitaDeVendas[[#This Row],[Período atual]]/ReceitaDeVendas[[#This Row],[Orçamento]])-1))),\"-\")","v":{"v":0,"d":"0.00%"}}]
[null,"Custo de vendas","Produto/serviço 1",{"$nulls":3},{"$f":"IFERROR(IF(ReceitaDeVendas[[#Totals],[Período atual]]=0,\"-\",ReceitaDeVendas[Período atual]/Receita_de_vendas),\"-\")","v":"-"},{"$f":"IFERROR(IF(ReceitaDeVendas[[#This Row],[Período anterior]]=ReceitaDeVendas[[#This Row],[Período atual]],0,IF(ReceitaDeVendas[[#This Row],[Período atual]]>ReceitaDeVendas[[#This Row],[Período anterior]],ABS((ReceitaDeVendas[[#This Row],[Período atual]]/ReceitaDeVendas[[#This Row],[Período anterior]])-1),IF(AND(ReceitaDeVendas[[#This Row],[Período atual]]<ReceitaDeVendas[[#This Row],[Período anterior]],ReceitaDeVendas[[#This Row],[Período anterior]]<0),-((ReceitaDeVendas[[#This Row],[Período atual]]/ReceitaDeVendas[[#This Row],[Período anterior]])-1),(ReceitaDeVendas[[#This Row],[Período atual]]/ReceitaDeVendas[[#This Row],[Período anterior]])-1))),\"-\")","v":{"v":0,"d":"0.00%"}},{"$f":"IFERROR(IF(ReceitaDeVendas[[#This Row],[Orçamento]]=ReceitaDeVendas[[#This Row],[Período atual]],0,IF(ReceitaDeVendas[[#This Row],[Período atual]]>ReceitaDeVendas[[#This Row],[Orçamento]],ABS((ReceitaDeVendas[[#This Row],[Período atual]]/ReceitaDeVendas[[#This Row],[Orçamento]])-1),IF(AND(ReceitaDeVendas[[#This Row],[Período atual]]<ReceitaDeVendas[[#This Row],[Orçamento]],ReceitaDeVendas[[#This Row],[Orçamento]]<0),-((ReceitaDeVendas[[#This Row],[Período atual]]/ReceitaDeVendas[[#This Row],[Orçamento]])-1),(ReceitaDeVendas[[#This Row],[Período atual]]/ReceitaDeVendas[[#This Row],[Orçamento]])-1))),\"-\")","v":{"v":0,"d":"0.00%"}}]
[null,"Custo de vendas","Produto/serviço 2",{"$nulls":3},{"$f":"IFERROR(IF(ReceitaDeVendas[[#Totals],[Período atual]]=0,\"-\",ReceitaDeVendas[Período atual]/Receita_de_vendas),\"-\")","v":"-"},{"$f":"IFERROR(IF(ReceitaDeVendas[[#This Row],[Período anterior]]=ReceitaDeVendas[[#This Row],[Período atual]],0,IF(ReceitaDeVendas[[#This Row],[Período atual]]>ReceitaDeVendas[[#This Row],[Período anterior]],ABS((ReceitaDeVendas[[#This Row],[Período atual]]/ReceitaDeVendas[[#This Row],[Período anterior]])-1),IF(AND(ReceitaDeVendas[[#This Row],[Período atual]]<ReceitaDeVendas[[#This Row],[Período anterior]],ReceitaDeVendas[[#This Row],[Período anterior]]<0),-((ReceitaDeVendas[[#This Row],[Período atual]]/ReceitaDeVendas[[#This Row],[Período anterior]])-1),(ReceitaDeVendas[[#This Row],[Período atual]]/ReceitaDeVendas[[#This Row],[Período anterior]])-1))),\"-\")","v":{"v":0,"d":"0.00%"}},{"$f":"IFERROR(IF(ReceitaDeVendas[[#This Row],[Orçamento]]=ReceitaDeVendas[[#This Row],[Período atual]],0,IF(ReceitaDeVendas[[#This Row],[Período atual]]>ReceitaDeVendas[[#This Row],[Orçamento]],ABS((ReceitaDeVendas[[#This Row],[Período atual]]/ReceitaDeVendas[[#This Row],[Orçamento]])-1),IF(AND(ReceitaDeVendas[[#This Row],[Período atual]]<ReceitaDeVendas[[#This Row],[Orçamento]],ReceitaDeVendas[[#This Row],[Orçamento]]<0),-((ReceitaDeVendas[[#This Row],[Período atual]]/ReceitaDeVendas[[#This Row],[Orçamento]])-1),(ReceitaDeVendas[[#This Row],[Período atual]]/ReceitaDeVendas[[#This Row],[Orçamento]])-1))),\"-\")","v":{"v":0,"d":"0.00%"}}]
[null,"Custo de vendas","Produto/serviço 3",{"$nulls":3},{"$f":"IFERROR(IF(ReceitaDeVendas[[#Totals],[Período atual]]=0,\"-\",ReceitaDeVendas[Período atual]/Receita_de_vendas),\"-\")","v":"-"},{"$f":"IFERROR(IF(ReceitaDeVendas[[#This Row],[Período anterior]]=ReceitaDeVendas[[#This Row],[Período atual]],0,IF(ReceitaDeVendas[[#This Row],[Período atual]]>ReceitaDeVendas[[#This Row],[Período anterior]],ABS((ReceitaDeVendas[[#This Row],[Período atual]]/ReceitaDeVendas[[#This Row],[Período anterior]])-1),IF(AND(ReceitaDeVendas[[#This Row],[Período atual]]<ReceitaDeVendas[[#This Row],[Período anterior]],ReceitaDeVendas[[#This Row],[Período anterior]]<0),-((ReceitaDeVendas[[#This Row],[Período atual]]/ReceitaDeVendas[[#This Row],[Período anterior]])-1),(ReceitaDeVendas[[#This Row],[Período atual]]/ReceitaDeVendas[[#This Row],[Período anterior]])-1))),\"-\")","v":{"v":0,"d":"0.00%"}},{"$f":"IFERROR(IF(ReceitaDeVendas[[#This Row],[Orçamento]]=ReceitaDeVendas[[#This Row],[Período atual]],0,IF(ReceitaDeVendas[[#This Row],[Período atual]]>ReceitaDeVendas[[#This Row],[Orçamento]],ABS((ReceitaDeVendas[[#This Row],[Período atual]]/ReceitaDeVendas[[#This Row],[Orçamento]])-1),IF(AND(ReceitaDeVendas[[#This Row],[Período atual]]<ReceitaDeVendas[[#This Row],[Orçamento]],ReceitaDeVendas[[#This Row],[Orçamento]]<0),-((ReceitaDeVendas[[#This Row],[Período atual]]/ReceitaDeVendas[[#This Row],[Orçamento]])-1),(ReceitaDeVendas[[#This Row],[Período atual]]/ReceitaDeVendas[[#This Row],[Orçamento]])-1))),\"-\")","v":{"v":0,"d":"0.00%"}}]
[null,"Custo de vendas","Produto/serviço 4",{"$nulls":3},{"$f":"IFERROR(IF(ReceitaDeVendas[[#Totals],[Período atual]]=0,\"-\",ReceitaDeVendas[Período atual]/Receita_de_vendas),\"-\")","v":"-"},{"$f":"IFERROR(IF(ReceitaDeVendas[[#This Row],[Período anterior]]=ReceitaDeVendas[[#This Row],[Período atual]],0,IF(ReceitaDeVendas[[#This Row],[Período atual]]>ReceitaDeVendas[[#This Row],[Período anterior]],ABS((ReceitaDeVendas[[#This Row],[Período atual]]/ReceitaDeVendas[[#This Row],[Período anterior]])-1),IF(AND(ReceitaDeVendas[[#This Row],[Período atual]]<ReceitaDeVendas[[#This Row],[Período anterior]],ReceitaDeVendas[[#This Row],[Período anterior]]<0),-((ReceitaDeVendas[[#This Row],[Período atual]]/ReceitaDeVendas[[#This Row],[Período anterior]])-1),(ReceitaDeVendas[[#This Row],[Período atual]]/ReceitaDeVendas[[#This Row],[Período anterior]])-1))),\"-\")","v":{"v":0,"d":"0.00%"}},{"$f":"IFERROR(IF(ReceitaDeVendas[[#This Row],[Orçamento]]=ReceitaDeVendas[[#This Row],[Período atual]],0,IF(ReceitaDeVendas[[#This Row],[Período atual]]>ReceitaDeVendas[[#This Row],[Orçamento]],ABS((ReceitaDeVendas[[#This Row],[Período atual]]/ReceitaDeVendas[[#This Row],[Orçamento]])-1),IF(AND(ReceitaDeVendas[[#This Row],[Período atual]]<ReceitaDeVendas[[#This Row],[Orçamento]],ReceitaDeVendas[[#This Row],[Orçamento]]<0),-((ReceitaDeVendas[[#This Row],[Período atual]]/ReceitaDeVendas[[#This Row],[Orçamento]])-1),(ReceitaDeVendas[[#This Row],[Período atual]]/ReceitaDeVendas[[#This Row],[Orçamento]])-1))),\"-\")","v":{"v":0,"d":"0.00%"}}]
[null,"Total da receita de vendas",null,{"$f":"SUBTOTAL(109,ReceitaDeVendas[Período anterior])","v":0},{"$f":"SUBTOTAL(109,ReceitaDeVendas[Orçamento])","v":0},{"$f":"SUBTOTAL(109,ReceitaDeVendas[Período atual])","v":0},{"$f":"SUBTOTAL(109,ReceitaDeVendas[Período atual em percentual (%) de vendas])","v":{"v":0,"d":"0.00%"}},{"$f":"SUBTOTAL(109,ReceitaDeVendas[Alteração percentual (%) do período anterior])","v":{"v":0,"d":"0.00%"}},{"$f":"SUBTOTAL(109,ReceitaDeVendas[Alteração percentual (%) do orçamento])","v":{"v":0,"d":"0.00%"}}]

{"sheet":"Rendimento","index":2,"n_rows":7,"n_cols":9,"rows_kept":7,"merged":[[0,7,2,8]]}
[null,{"$f":"Título_da_pasta_de_rabalho","v":"Demonstrativo de lucros e perdas"}]
[null,{"$f":"Nome_Empresa","v":"Nome da empresa"},"Expresso em milhares"]
[null,"Rendimento",{"$f":"IFERROR(Rendimento[[#Totals],[Período atual]],\"-\")","v":0}]
[null,"Tipo de rendimento","Descrição","Período anterior","Orçamento","Período atual","Período atual em percentual (%) de vendas","Alteração percentual (%) do período anterior","Alteração percentual (%) do orçamento"]
[null,"Rendimento","Outros rendimentos",{"$nulls":3},{"$f":"IFERROR(IF(Receita_de_vendas=0,\"-\",Rendimento[Período atual]/Receita_de_vendas),\"-\")","v":"-"},{"$f":"IFERROR(IF(Rendimento[[#This Row],[Período anterior]]=Rendimento[[#This Row],[Período atual]],0,IF(Rendimento[[#This Row],[Período atual]]>Rendimento[[#This Row],[Período anterior]],ABS((Rendimento[[#This Row],[Período atual]]/Rendimento[[#This Row],[Período anterior]])-1),IF(AND(Rendimento[[#This Row],[Período atual]]<Rendimento[[#This Row],[Período anterior]],Rendimento[[#This Row],[Período anterior]]<0),-((Rendimento[[#This Row],[Período atual]]/Rendimento[[#This Row],[Período anterior]])-1),(Rendimento[[#This Row],[Período atual]]/Rendimento[[#This Row],[Período anterior]])-1))),\"-\")","v":{"v":0,"d":"0.00%"}},{"$f":"IFERROR(IF(Rendimento[[#This Row],[Orçamento]]=Rendimento[[#This Row],[Período atual]],0,IF(Rendimento[[#This Row],[Período atual]]>Rendimento[[#This Row],[Orçamento]],ABS((Rendimento[[#This Row],[Período atual]]/Rendimento[[#This Row],[Orçamento]])-1),IF(AND(Rendimento[[#This Row],[Período atual]]<Rendimento[[#This Row],[Orçamento]],Rendimento[[#This Row],[Orçamento]]<0),-((Rendimento[[#This Row],[Período atual]]/Rendimento[[#This Row],[Orçamento]])-1),(Rendimento[[#This Row],[Período atual]]/Rendimento[[#This Row],[Orçamento]])-1))),\"-\")","v":{"v":0,"d":"0.00%"}}]
[{"$nulls":6},{"$f":"IFERROR(IF(Receita_de_vendas=0,\"-\",Rendimento[Período atual]/Receita_de_vendas),\"-\")","v":"-"},{"$f":"IFERROR(IF(Rendimento[[#This Row],[Período anterior]]=Rendimento[[#This Row],[Período atual]],0,IF(Rendimento[[#This Row],[Período atual]]>Rendimento[[#This Row],[Período anterior]],ABS((Rendimento[[#This Row],[Período atual]]/Rendimento[[#This Row],[Período anterior]])-1),IF(AND(Rendimento[[#This Row],[Período atual]]<Rendimento[[#This Row],[Período anterior]],Rendimento[[#This Row],[Período anterior]]<0),-((Rendimento[[#This Row],[Período atual]]/Rendimento[[#This Row],[Período anterior]])-1),(Rendimento[[#This Row],[Período atual]]/Rendimento[[#This Row],[Período anterior]])-1))),\"-\")","v":{"v":0,"d":"0.00%"}},{"$f":"IFERROR(IF(Rendimento[[#This Row],[Orçamento]]=Rendimento[[#This Row],[Período atual]],0,IF(Rendimento[[#This Row],[Período atual]]>Rendimento[[#This Row],[Orçamento]],ABS((Rendimento[[#This Row],[Período atual]]/Rendimento[[#This Row],[Orçamento]])-1),IF(AND(Rendimento[[#This Row],[Período atual]]<Rendimento[[#This Row],[Orçamento]],Rendimento[[#This Row],[Orçamento]]<0),-((Rendimento[[#This Row],[Período atual]]/Rendimento[[#This Row],[Orçamento]])-1),(Rendimento[[#This Row],[Período atual]]/Rendimento[[#This Row],[Orçamento]])-1))),\"-\")","v":{"v":0,"d":"0.00%"}}]
[null,"Total da receita de vendas",null,{"$f":"SUBTOTAL(109,Rendimento[Período anterior])","v":0},{"$f":"SUBTOTAL(109,Rendimento[Orçamento])","v":0},{"$f":"SUBTOTAL(109,Rendimento[Período atual])","v":0},{"$f":"SUBTOTAL(109,Rendimento[Período atual em percentual (%) de vendas])","v":{"v":0,"d":"0.00%"}},{"$f":"SUBTOTAL(109,Rendimento[Alteração percentual (%) do período anterior])","v":{"v":0,"d":"0.00%"}},{"$f":"SUBTOTAL(109,Rendimento[Alteração percentual (%) do orçamento])","v":{"v":0,"d":"0.00%"}}]

{"sheet":"Despesas","index":3,"n_rows":25,"n_cols":9,"rows_kept":25,"merged":[[0,7,2,8]]}
[null,{"$f":"Título_da_pasta_de_rabalho","v":"Demonstrativo de lucros e perdas"}]
[null,{"$f":"Nome_Empresa","v":"Nome da empresa"},"Expresso em milhares"]
[null,"Despesas operacionais",{"$f":"IFERROR(DespesasOperacionais[[#Totals],[Período atual]],\"-\")","v":0}]
[null,"Tipo de despesa","Descrição","Período anterior","Orçamento","Período atual","Período atual em percentual (%) de vendas","Alteração percentual (%) do período anterior","Alteração percentual (%) do orçamento"]
[null,"Vendas e marketing","Publicidade",{"$nulls":3},{"$f":"IFERROR(IF(Receita_de_vendas=0,\"-\",DespesasOperacionais[Período atual]/Receita_de_vendas),\"-\")","v":"-"},{"$f":"IFERROR(IF(DespesasOperacionais[[#This Row],[Período anterior]]=DespesasOperacionais[[#This Row],[Período atual]],0,IF(DespesasOperacionais[[#This Row],[Período atual]]>DespesasOperacionais[[#This Row],[Período anterior]],ABS((DespesasOperacionais[[#This Row],[Período atual]]/DespesasOperacionais[[#This Row],[Período anterior]])-1),IF(AND(DespesasOperacionais[[#This Row],[Período atual]]<DespesasOperacionais[[#This Row],[Período anterior]],DespesasOperacionais[[#This Row],[Período anterior]]<0),-((DespesasOperacionais[[#This Row],[Período atual]]/DespesasOperacionais[[#This Row],[Período anterior]])-1),(DespesasOperacionais[[#This Row],[Período atual]]/DespesasOperacionais[[#This Row],[Período anterior]])-1))),\"-\")","v":{"v":0,"d":"0.00%"}},{"$f":"IFERROR(IF(DespesasOperacionais[[#This Row],[Orçamento]]=DespesasOperacionais[[#This Row],[Período atual]],0,IF(DespesasOperacionais[[#This Row],[Período atual]]>DespesasOperacionais[[#This Row],[Orçamento]],ABS((DespesasOperacionais[[#This Row],[Período atual]]/DespesasOperacionais[[#This Row],[Orçamento]])-1),IF(AND(DespesasOperacionais[[#This Row],[Período atual]]<DespesasOperacionais[[#This Row],[Orçamento]],DespesasOperacionais[[#This Row],[Orçamento]]<0),-((DespesasOperacionais[[#This Row],[Período atual]]/DespesasOperacionais[[#This Row],[Orçamento]])-1),(DespesasOperacionais[[#This Row],[Período atual]]/DespesasOperacionais[[#This Row],[Orçamento]])-1))),\"-\")","v":{"v":0,"d":"0.00%"}}]
[null,"Vendas e marketing","Marketing direto",{"$nulls":3},{"$f":"IFERROR(IF(Receita_de_vendas=0,\"-\",DespesasOperacionais[Período atual]/Receita_de_vendas),\"-\")","v":"-"},{"$f":"IFERROR(IF(DespesasOperacionais[[#This Row],[Período anterior]]=DespesasOperacionais[[#This Row],[Período atual]],0,IF(DespesasOperacionais[[#This Row],[Período atual]]>DespesasOperacionais[[#This Row],[Período anterior]],ABS((DespesasOperacionais[[#This Row],[Período atual]]/DespesasOperacionais[[#This Row],[Período anterior]])-1),IF(AND(DespesasOperacionais[[#This Row],[Período atual]]<DespesasOperacionais[[#This Row],[Período anterior]],DespesasOperacionais[[#This Row],[Período anterior]]<0),-((DespesasOperacionais[[#This Row],[Período atual]]/DespesasOperacionais[[#This Row],[Período anterior]])-1),(DespesasOperacionais[[#This Row],[Período atual]]/DespesasOperacionais[[#This Row],[Período anterior]])-1))),\"-\")","v":{"v":0,"d":"0.00%"}},{"$f":"IFERROR(IF(DespesasOperacionais[[#This Row],[Orçamento]]=DespesasOperacionais[[#This Row],[Período atual]],0,IF(DespesasOperacionais[[#This Row],[Período atual]]>DespesasOperacionais[[#This Row],[Orçamento]],ABS((DespesasOperacionais[[#This Row],[Período atual]]/DespesasOperacionais[[#This Row],[Orçamento]])-1),IF(AND(DespesasOperacionais[[#This Row],[Período atual]]<DespesasOperacionais[[#This Row],[Orçamento]],DespesasOperacionais[[#This Row],[Orçamento]]<0),-((DespesasOperacionais[[#This Row],[Período atual]]/DespesasOperacionais[[#This Row],[Orçamento]])-1),(DespesasOperacionais[[#This Row],[Período atual]]/DespesasOperacionais[[#This Row],[Orçamento]])-1))),\"-\")","v":{"v":0,"d":"0.00%"}}]
[null,"Vendas e marketing","Outras despesas (especificar)",{"$nulls":3},{"$f":"IFERROR(IF(Receita_de_vendas=0,\"-\",DespesasOperacionais[Período atual]/Receita_de_vendas),\"-\")","v":"-"},{"$f":"IFERROR(IF(DespesasOperacionais[[#This Row],[Período anterior]]=DespesasOperacionais[[#This Row],[Período atual]],0,IF(DespesasOperacionais[[#This Row],[Período atual]]>DespesasOperacionais[[#This Row],[Período anterior]],ABS((DespesasOperacionais[[#This Row],[Período atual]]/DespesasOperacionais[[#This Row],[Período anterior]])-1),IF(AND(DespesasOperacionais[[#This Row],[Período atual]]<DespesasOperacionais[[#This Row],[Período anterior]],DespesasOperacionais[[#This Row],[Período anterior]]<0),-((DespesasOperacionais[[#This Row],[Período atual]]/DespesasOperacionais[[#This Row],[Período anterior]])-1),(DespesasOperacionais[[#This Row],[Período atual]]/DespesasOperacionais[[#This Row],[Período anterior]])-1))),\"-\")","v":{"v":0,"d":"0.00%"}},{"$f":"IFERROR(IF(DespesasOperacionais[[#This Row],[Orçamento]]=DespesasOperacionais[[#This Row],[Período atual]],0,IF(DespesasOperacionais[[#This Row],[Período atual]]>DespesasOperacionais[[#This Row],[Orçamento]],ABS((DespesasOperacionais[[#This Row],[Período atual]]/DespesasOperacionais[[#This Row],[Orçamento]])-1),IF(AND(DespesasOperacionais[[#This Row],[Período atual]]<DespesasOperacionais[[#This Row],[Orçamento]],DespesasOperacionais[[#This Row],[Orçamento]]<0),-((DespesasOperacionais[[#This Row],[Período atual]]/DespesasOperacionais[[#This Row],[Orçamento]])-1),(DespesasOperacionais[[#This Row],[Período atual]]/DespesasOperacionais[[#This Row],[Orçamento]])-1))),\"-\")","v":{"v":0,"d":"0.00%"}}]
[null,"Vendas e marketing","Outras despesas (especificar)",{"$nulls":3},{"$f":"IFERROR(IF(Receita_de_vendas=0,\"-\",DespesasOperacionais[Período atual]/Receita_de_vendas),\"-\")","v":"-"},{"$f":"IFERROR(IF(DespesasOperacionais[[#This Row],[Período anterior]]=DespesasOperacionais[[#This Row],[Período atual]],0,IF(DespesasOperacionais[[#This Row],[Período atual]]>DespesasOperacionais[[#This Row],[Período anterior]],ABS((DespesasOperacionais[[#This Row],[Período atual]]/DespesasOperacionais[[#This Row],[Período anterior]])-1),IF(AND(DespesasOperacionais[[#This Row],[Período atual]]<DespesasOperacionais[[#This Row],[Período anterior]],DespesasOperacionais[[#This Row],[Período anterior]]<0),-((DespesasOperacionais[[#This Row],[Período atual]]/DespesasOperacionais[[#This Row],[Período anterior]])-1),(DespesasOperacionais[[#This Row],[Período atual]]/DespesasOperacionais[[#This Row],[Período anterior]])-1))),\"-\")","v":{"v":0,"d":"0.00%"}},{"$f":"IFERROR(IF(DespesasOperacionais[[#This Row],[Orçamento]]=DespesasOperacionais[[#This Row],[Período atual]],0,IF(DespesasOperacionais[[#This Row],[Período atual]]>DespesasOperacionais[[#This Row],[Orçamento]],ABS((DespesasOperacionais[[#This Row],[Período atual]]/DespesasOperacionais[[#This Row],[Orçamento]])-1),IF(AND(DespesasOperacionais[[#This Row],[Período atual]]<DespesasOperacionais[[#This Row],[Orçamento]],DespesasOperacionais[[#This Row],[Orçamento]]<0),-((DespesasOperacionais[[#This Row],[Período atual]]/DespesasOperacionais[[#This Row],[Orçamento]])-1),(DespesasOperacionais[[#This Row],[Período atual]]/DespesasOperacionais[[#This Row],[Orçamento]])-1))),\"-\")","v":{"v":0,"d":"0.00%"}}]
[null,"Pesquisa e desenvolvimento","Licenças de tecnologia",{"$nulls":3},{"$f":"IFERROR(IF(Receita_de_vendas=0,\"-\",DespesasOperacionais[Período atual]/Receita_de_vendas),\"-\")","v":"-"},{"$f":"IFERROR(IF(DespesasOperacionais[[#This Row],[Período anterior]]=DespesasOperacionais[[#This Row],[Período atual]],0,IF(DespesasOperacionais[[#This Row],[Período atual]]>DespesasOperacionais[[#This Row],[Período anterior]],ABS((DespesasOperacionais[[#This Row],[Período atual]]/DespesasOperacionais[[#This Row],[Período anterior]])-1),IF(AND(DespesasOperacionais[[#This Row],[Período atual]]<DespesasOperacionais[[#This Row],[Período anterior]],DespesasOperacionais[[#This Row],[Período anterior]]<0),-((DespesasOperacionais[[#This Row],[Período atual]]/DespesasOperacionais[[#This Row],[Período anterior]])-1),(DespesasOperacionais[[#This Row],[Período atual]]/DespesasOperacionais[[#This Row],[Período anterior]])-1))),\"-\")","v":{"v":0,"d":"0.00%"}},{"$f":"IFERROR(IF(DespesasOperacionais[[#This Row],[Orçamento]]=DespesasOperacionais[[#This Row],[Período atual]],0,IF(DespesasOperacionais[[#This Row],[Período atual]]>DespesasOperacionais[[#This Row],[Orçamento]],ABS((DespesasOperacionais[[#This Row],[Período atual]]/DespesasOperacionais[[#This Row],[Orçamento]])-1),IF(AND(DespesasOperacionais[[#This Row],[Período atual]]<DespesasOperacionais[[#This Row],[Orçamento]],DespesasOperacionais[[#This Row],[Orçamento]]<0),-((DespesasOperacionais[[#This Row],[Período atual]]/DespesasOperacionais[[#This Row],[Orçamento]])-1),(DespesasOperacionais[[#This Row],[Período atual]]/DespesasOperacionais[[#This Row],[Orçamento]])-1))),\"-\")","v":{"v":0,"d":"0.00%"}}]
[null,"Pesquisa e desenvolvimento","Patentes ",{"$nulls":3},{"$f":"IFERROR(IF(Receita_de_vendas=0,\"-\",DespesasOperacionais[Período atual]/Receita_de_vendas),\"-\")","v":"-"},{"$f":"IFERROR(IF(DespesasOperacionais[[#This Row],[Período anterior]]=DespesasOperacionais[[#This Row],[Período atual]],0,IF(DespesasOperacionais[[#This Row],[Período atual]]>DespesasOperacionais[[#This Row],[Período anterior]],ABS((DespesasOperacionais[[#This Row],[Período atual]]/DespesasOperacionais[[#This Row],[Período anterior]])-1),IF(AND(DespesasOperacionais[[#This Row],[Período atual]]<DespesasOperacionais[[#This Row],[Período anterior]],DespesasOperacionais[[#This Row],[Período anterior]]<0),-((DespesasOperacionais[[#This Row],[Período atual]]/DespesasOperacionais[[#This Row],[Período anterior]])-1),(DespesasOperacionais[[#This Row],[Período atual]]/DespesasOperacionais[[#This Row],[Período anterior]])-1))),\"-\")","v":{"v":0,"d":"0.00%"}},{"$f":"IFERROR(IF(DespesasOperacionais[[#This Row],[Orçamento]]=DespesasOperacionais[[#This Row],[Período atual]],0,IF(DespesasOperacionais[[#This Row],[Período atual]]>DespesasOperacionais[[#This Row],[Orçamento]],ABS((DespesasOperacionais[[#This Row],[Período atual]]/DespesasOperacionais[[#This Row],[Orçamento]])-1),IF(AND(DespesasOperacionais[[#This Row],[Período atual]]<DespesasOperacionais[[#This Row],[Orçamento]],DespesasOperacionais[[#This Row],[Orçamento]]<0),-((DespesasOperacionais[[#This Row],[Período atual]]/DespesasOperacionais[[#This Row],[Orçamento]])-1),(DespesasOperacionais[[#This Row],[Período atual]]/DespesasOperacionais[[#This Row],[Orçamento]])-1))),\"-\")","v":{"v":0,"d":"0.00%"}}]
[null,"Pesquisa e desenvolvimento","Outras despesas (especificar)",{"$nulls":3},{"$f":"IFERROR(IF(Receita_de_vendas=0,\"-\",DespesasOperacionais[Período atual]/Receita_de_vendas),\"-\")","v":"-"},{"$f":"IFERROR(IF(DespesasOperacionais[[#This Row],[Período anterior]]=DespesasOperacionais[[#This Row],[Período atual]],0,IF(DespesasOperacionais[[#This Row],[Período atual]]>DespesasOperacionais[[#This Row],[Período anterior]],ABS((DespesasOperacionais[[#This Row],[Período atual]]/DespesasOperacionais[[#This Row],[Período anterior]])-1),IF(AND(DespesasOperacionais[[#This Row],[Período atual]]<DespesasOperacionais[[#This Row],[Período anterior]],DespesasOperacionais[[#This Row],[Período anterior]]<0),-((DespesasOperacionais[[#This Row],[Período atual]]/DespesasOperacionais[[#This Row],[Período anterior]])-1),(DespesasOperacionais[[#This Row],[Período atual]]/DespesasOperacionais[[#This Row],[Período anterior]])-1))),\"-\")","v":{"v":0,"d":"0.00%"}},{"$f":"IFERROR(IF(DespesasOperacionais[[#This Row],[Orçamento]]=DespesasOperacionais[[#This Row],[Período atual]],0,IF(DespesasOperacionais[[#This Row],[Período atual]]>DespesasOperacionais[[#This Row],[Orçamento]],ABS((DespesasOperacionais[[#This Row],[Período atual]]/DespesasOperacionais[[#This Row],[Orçamento]])-1),IF(AND(DespesasOperacionais[[#This Row],[Período atual]]<DespesasOperacionais[[#This Row],[Orçamento]],DespesasOperacionais[[#This Row],[Orçamento]]<0),-((DespesasOperacionais[[#This Row],[Período atual]]/DespesasOperacionais[[#This Row],[Orçamento]])-1),(DespesasOperacionais[[#This Row],[Período atual]]/DespesasOperacionais[[#This Row],[Orçamento]])-1))),\"-\")","v":{"v":0,"d":"0.00%"}}]
[null,"Pesquisa e desenvolvimento","Outras despesas (especificar)",{"$nulls":3},{"$f":"IFERROR(IF(Receita_de_vendas=0,\"-\",DespesasOperacionais[Período atual]/Receita_de_vendas),\"-\")","v":"-"},{"$f":"IFERROR(IF(DespesasOperacionais[[#This Row],[Período anterior]]=DespesasOperacionais[[#This Row],[Período atual]],0,IF(DespesasOperacionais[[#This Row],[Período atual]]>DespesasOperacionais[[#This Row],[Período anterior]],ABS((DespesasOperacionais[[#This Row],[Período atual]]/DespesasOperacionais[[#This Row],[Período anterior]])-1),IF(AND(DespesasOperacionais[[#This Row],[Período atual]]<DespesasOperacionais[[#This Row],[Período anterior]],DespesasOperacionais[[#This Row],[Período anterior]]<0),-((DespesasOperacionais[[#This Row],[Período atual]]/DespesasOperacionais[[#This Row],[Período anterior]])-1),(DespesasOperacionais[[#This Row],[Período atual]]/DespesasOperacionais[[#This Row],[Período anterior]])-1))),\"-\")","v":{"v":0,"d":"0.00%"}},{"$f":"IFERROR(IF(DespesasOperacionais[[#This Row],[Orçamento]]=DespesasOperacionais[[#This Row],[Período atual]],0,IF(DespesasOperacionais[[#This Row],[Período atual]]>DespesasOperacionais[[#This Row],[Orçamento]],ABS((DespesasOperacionais[[#This Row],[Período atual]]/DespesasOperacionais[[#This Row],[Orçamento]])-1),IF(AND(DespesasOperacionais[[#This Row],[Período atual]]<DespesasOperacionais[[#This Row],[Orçamento]],DespesasOperacionais[[#This Row],[Orçamento]]<0),-((DespesasOperacionais[[#This Row],[Período atual]]/DespesasOperacionais[[#This Row],[Orçamento]])-1),(DespesasOperacionais[[#This Row],[Período atual]]/DespesasOperacionais[[#This Row],[Orçamento]])-1))),\"-\")","v":{"v":0,"d":"0.00%"}}]
[null,"Gerais e administrativas","Ordenados e salários",{"$nulls":3},{"$f":"IFERROR(IF(Receita_de_vendas=0,\"-\",DespesasOperacionais[Período atual]/Receita_de_vendas),\"-\")","v":"-"},{"$f":"IFERROR(IF(DespesasOperacionais[[#This Row],[Período anterior]]=DespesasOperacionais[[#This Row],[Período atual]],0,IF(DespesasOperacionais[[#This Row],[Período atual]]>DespesasOperacionais[[#This Row],[Período anterior]],ABS((DespesasOperacionais[[#This Row],[Período atual]]/DespesasOperacionais[[#This Row],[Período anterior]])-1),IF(AND(DespesasOperacionais[[#This Row],[Período atual]]<DespesasOperacionais[[#This Row],[Período anterior]],DespesasOperacionais[[#This Row],[Período anterior]]<0),-((DespesasOperacionais[[#This Row],[Período atual]]/DespesasOperacionais[[#This Row],[Período anterior]])-1),(DespesasOperacionais[[#This Row],[Período atual]]/DespesasOperacionais[[#This Row],[Período anterior]])-1))),\"-\")","v":{"v":0,"d":"0.00%"}},{"$f":"IFERROR(IF(DespesasOperacionais[[#This Row],[Orçamento]]=DespesasOperacionais[[#This Row],[Período atual]],0,IF(DespesasOperacionais[[#This Row],[Período atual]]>DespesasOperacionais[[#This Row],[Orçamento]],ABS((DespesasOperacionais[[#This Row],[Período atual]]/DespesasOperacionais[[#This Row],[Orçamento]])-1),IF(AND(DespesasOperacionais[[#This Row],[Período atual]]<DespesasOperacionais[[#This Row],[Orçamento]],DespesasOperacionais[[#This Row],[Orçamento]]<0),-((DespesasOperacionais[[#This Row],[Período atual]]/DespesasOperacionais[[#This Row],[Orçamento]])-1),(DespesasOperacionais[[#This Row],[Período atual]]/DespesasOperacionais[[#This Row],[Orçamento]])-1))),\"-\")","v":{"v":0,"d":"0.00%"}}]
[null,"Gerais e administrativas","Serviços externos",{"$nulls":3},{"$f":"IFERROR(IF(Receita_de_vendas=0,\"-\",DespesasOperacionais[Período atual]/Receita_de_vendas),\"-\")","v":"-"},{"$f":"IFERROR(IF(DespesasOperacionais[[#This Row],[Período anterior]]=DespesasOperacionais[[#This Row],[Período atual]],0,IF(DespesasOperacionais[[#This Row],[Período atual]]>DespesasOperacionais[[#This Row],[Período anterior]],ABS((DespesasOperacionais[[#This Row],[Período atual]]/DespesasOperacionais[[#This Row],[Período anterior]])-1),IF(AND(DespesasOperacionais[[#This Row],[Período atual]]<DespesasOperacionais[[#This Row],[Período anterior]],DespesasOperacionais[[#This Row],[Período anterior]]<0),-((DespesasOperacionais[[#This Row],[Período atual]]/DespesasOperacionais[[#This Row],[Período anterior]])-1),(DespesasOperacionais[[#This Row],[Período atual]]/DespesasOperacionais[[#This Row],[Período anterior]])-1))),\"-\")","v":{"v":0,"d":"0.00%"}},{"$f":"IFERROR(IF(DespesasOperacionais[[#This Row],[Orçamento]]=DespesasOperacionais[[#This Row],[Período atual]],0,IF(DespesasOperacionais[[#This Row],[Período atual]]>DespesasOperacionais[[#This Row],[Orçamento]],ABS((DespesasOperacionais[[#This Row],[Período atual]]/DespesasOperacionais[[#This Row],[Orçamento]])-1),IF(AND(DespesasOperacionais[[#This Row],[Período atual]]<DespesasOperacionais[[#This Row],[Orçamento]],DespesasOperacionais[[#This Row],[Orçamento]]<0),-((DespesasOperacionais[[#This Row],[Período atual]]/DespesasOperacionais[[#This Row],[Orçamento]])-1),(DespesasOperacionais[[#This Row],[Período atual]]/DespesasOperacionais[[#This Row],[Orçamento]])-1))),\"-\")","v":{"v":0,"d":"0.00%"}}]
[null,"Gerais e administrativas","Materiais",{"$nulls":3},{"$f":"IFERROR(IF(Receita_de_vendas=0,\"-\",DespesasOperacionais[Período atual]/Receita_de_vendas),\"-\")","v":"-"},{"$f":"IFERROR(IF(DespesasOperacionais[[#This Row],[Período anterior]]=DespesasOperacionais[[#This Row],[Período atual]],0,IF(DespesasOperacionais[[#This Row],[Período atual]]>DespesasOperacionais[[#This Row],[Período anterior]],ABS((DespesasOperacionais[[#This Row],[Período atual]]/DespesasOperacionais[[#This Row],[Período anterior]])-1),IF(AND(DespesasOperacionais[[#This Row],[Período atual]]<DespesasOperacionais[[#This Row],[Período anterior]],DespesasOperacionais[[#This Row],[Período anterior]]<0),-((DespesasOperacionais[[#This Row],[Período atual]]/DespesasOperacionais[[#This Row],[Período anterior]])-1),(DespesasOperacionais[[#This Row],[Período atual]]/DespesasOperacionais[[#This Row],[Período anterior]])-1))),\"-\")","v":{"v":0,"d":"0.00%"}},{"$f":"IFERROR(IF(DespesasOperacionais[[#This Row],[Orçamento]]=DespesasOperacionais[[#This Row],[Período atual]],0,IF(DespesasOperacionais[[#This Row],[Período atual]]>DespesasOperacionais[[#This Row],[Orçamento]],ABS((DespesasOperacionais[[#This Row],[Período atual]]/DespesasOperacionais[[#This Row],[Orçamento]])-1),IF(AND(DespesasOperacionais[[#This Row],[Período atual]]<DespesasOperacionais[[#This Row],[Orçamento]],DespesasOperacionais[[#This Row],[Orçamento]]<0),-((DespesasOperacionais[[#This Row],[Período atual]]/DespesasOperacionais[[#This Row],[Orçamento]])-1),(DespesasOperacionais[[#This Row],[Período atual]]/DespesasOperacionais[[#This Row],[Orçamento]])-1))),\"-\")","v":{"v":0,"d":"0.00%"}}]
[null,"Gerais e administrativas","Refeições e entretenimento",{"$nulls":3},{"$f":"IFERROR(IF(Receita_de_vendas=0,\"-\",DespesasOperacionais[Período atual]/Receita_de_vendas),\"-\")","v":"-"},{"$f":"IFERROR(IF(DespesasOperacionais[[#This Row],[Período anterior]]=DespesasOperacionais[[#This Row],[Período atual]],0,IF(DespesasOperacionais[[#This Row],[Período atual]]>DespesasOperacionais[[#This Row],[Período anterior]],ABS((DespesasOperacionais[[#This Row],[Período atual]]/DespesasOperacionais[[#This Row],[Período anterior]])-1),IF(AND(DespesasOperacionais[[#This Row],[Período atual]]<DespesasOperacionais[[#This Row],[Período anterior]],DespesasOperacionais[[#This Row],[Período anterior]]<0),-((DespesasOperacionais[[#This Row],[Período atual]]/DespesasOperacionais[[#This Row],[Período anterior]])-1),(DespesasOperacionais[[#This Row],[Período atual]]/DespesasOperacionais[[#This Row],[Período anterior]])-1))),\"-\")","v":{"v":0,"d":"0.00%"}},{"$f":"IFERROR(IF(DespesasOperacionais[[#This Row],[Orçamento]]=DespesasOperacionais[[#This Row],[Período atual]],0,IF(DespesasOperacionais[[#This Row],[Período atual]]>DespesasOperacionais[[#This Row],[Orçamento]],ABS((DespesasOperacionais[[#This Row],[Período atual]]/DespesasOperacionais[[#This Row],[Orçamento]])-1),IF(AND(DespesasOperacionais[[#This Row],[Período atual]]<DespesasOperacionais[[#This Row],[Orçamento]],DespesasOperacionais[[#This Row],[Orçamento]]<0),-((DespesasOperacionais[[#This Row],[Período atual]]/DespesasOperacionais[[#This Row],[Orçamento]])-1),(DespesasOperacionais[[#This Row],[Período atual]]/DespesasOperacionais[[#This Row],[Orçamento]])-1))),\"-\")","v":{"v":0,"d":"0.00%"}}]
[null,"Gerais e administrativas","Aluguel",{"$nulls":3},{"$f":"IFERROR(IF(Receita_de_vendas=0,\"-\",DespesasOperacionais[Período atual]/Receita_de_vendas),\"-\")","v":"-"},{"$f":"IFERROR(IF(DespesasOperacionais[[#This Row],[Período anterior]]=DespesasOperacionais[[#This Row],[Período atual]],0,IF(DespesasOperacionais[[#This Row],[Período atual]]>DespesasOperacionais[[#This Row],[Período anterior]],ABS((DespesasOperacionais[[#This Row],[Período atual]]/DespesasOperacionais[[#This Row],[Período anterior]])-1),IF(AND(DespesasOperacionais[[#This Row],[Período atual]]<DespesasOperacionais[[#This Row],[Período anterior]],DespesasOperacionais[[#This Row],[Período anterior]]<0),-((DespesasOperacionais[[#This Row],[Período atual]]/DespesasOperacionais[[#This Row],[Período anterior]])-1),(DespesasOperacionais[[#This Row],[Período atual]]/DespesasOperacionais[[#This Row],[Período anterior]])-1))),\"-\")","v":{"v":0,"d":"0.00%"}},{"$f":"IFERROR(IF(DespesasOperacionais[[#This Row],[Orçamento]]=DespesasOperacionais[[#This Row],[Período atual]],0,IF(DespesasOperacionais[[#This Row],[Período atual]]>DespesasOperacionais[[#This Row],[Orçamento]],ABS((DespesasOperacionais[[#This Row],[Período atual]]/DespesasOperacionais[[#This Row],[Orçamento]])-1),IF(AND(DespesasOperacionais[[#This Row],[Período atual]]<DespesasOperacionais[[#This Row],[Orçamento]],DespesasOperacionais[[#This Row],[Orçamento]]<0),-((DespesasOperacionais[[#This Row],[Período atual]]/DespesasOperacionais[[#This Row],[Orçamento]])-1),(DespesasOperacionais[[#This Row],[Período atual]]/DespesasOperacionais[[#This Row],[Orçamento]])-1))),\"-\")","v":{"v":0,"d":"0.00%"}}]
[null,"Gerais e administrativas","Telefone",{"$nulls":3},{"$f":"IFERROR(IF(Receita_de_vendas=0,\"-\",DespesasOperacionais[Período atual]/Receita_de_vendas),\"-\")","v":"-"},{"$f":"IFERROR(IF(DespesasOperacionais[[#This Row],[Período anterior]]=DespesasOperacionais[[#This Row],[Período atual]],0,IF(DespesasOperacionais[[#This Row],[Período atual]]>DespesasOperacionais[[#This Row],[Período anterior]],ABS((DespesasOperacionais[[#This Row],[Período atual]]/DespesasOperacionais[[#This Row],[Período anterior]])-1),IF(AND(DespesasOperacionais[[#This Row],[Período atual]]<DespesasOperacionais[[#This Row],[Período anterior]],DespesasOperacionais[[#This Row],[Período anterior]]<0),-((DespesasOperacionais[[#This Row],[Período atual]]/DespesasOperacionais[[#This Row],[Período anterior]])-1),(DespesasOperacionais[[#This Row],[Período atual]]/DespesasOperacionais[[#This Row],[Período anterior]])-1))),\"-\")","v":{"v":0,"d":"0.00%"}},{"$f":"IFERROR(IF(DespesasOperacionais[[#This Row],[Orçamento]]=DespesasOperacionais[[#This Row],[Período atual]],0,IF(DespesasOperacionais[[#This Row],[Período atual]]>DespesasOperacionais[[#This Row],[Orçamento]],ABS((DespesasOperacionais[[#This Row],[Período atual]]/DespesasOperacionais[[#This Row],[Orçamento]])-1),IF(AND(DespesasOperacionais[[#This Row],[Período atual]]<DespesasOperacionais[[#This Row],[Orçamento]],DespesasOperacionais[[#This Row],[Orçamento]]<0),-((DespesasOperacionais[[#This Row],[Período atual]]/DespesasOperacionais[[#This Row],[Orçamento]])-1),(DespesasOperacionais[[#This Row],[Período atual]]/DespesasOperacionais[[#This Row],[Orçamento]])-1))),\"-\")","v":{"v":0,"d":"0.00%"}}]
[null,"Gerais e administrativas","Utilitários",{"$nulls":3},{"$f":"IFERROR(IF(Receita_de_vendas=0,\"-\",DespesasOperacionais[Período atual]/Receita_de_vendas),\"-\")","v":"-"},{"$f":"IFERROR(IF(DespesasOperacionais[[#This Row],[Período anterior]]=DespesasOperacionais[[#This Row],[Período atual]],0,IF(DespesasOperacionais[[#This Row],[Período atual]]>DespesasOperacionais[[#This Row],[Período anterior]],ABS((DespesasOperacionais[[#This Row],[Período atual]]/DespesasOperacionais[[#This Row],[Período anterior]])-1),IF(AND(DespesasOperacionais[[#This Row],[Período atual]]<DespesasOperacionais[[#This Row],[Período anterior]],DespesasOperacionais[[#This Row],[Período anterior]]<0),-((DespesasOperacionais[[#This Row],[Período atual]]/DespesasOperacionais[[#This Row],[Período anterior]])-1),(DespesasOperacionais[[#This Row],[Período atual]]/DespesasOperacionais[[#This Row],[Período anterior]])-1))),\"-\")","v":{"v":0,"d":"0.00%"}},{"$f":"IFERROR(IF(DespesasOperacionais[[#This Row],[Orçamento]]=DespesasOperacionais[[#This Row],[Período atual]],0,IF(DespesasOperacionais[[#This Row],[Período atual]]>DespesasOperacionais[[#This Row],[Orçamento]],ABS((DespesasOperacionais[[#This Row],[Período atual]]/DespesasOperacionais[[#This Row],[Orçamento]])-1),IF(AND(DespesasOperacionais[[#This Row],[Período atual]]<DespesasOperacionais[[#This Row],[Orçamento]],DespesasOperacionais[[#This Row],[Orçamento]]<0),-((DespesasOperacionais[[#This Row],[Período atual]]/DespesasOperacionais[[#This Row],[Orçamento]])-1),(DespesasOperacionais[[#This Row],[Período atual]]/DespesasOperacionais[[#This Row],[Orçamento]])-1))),\"-\")","v":{"v":0,"d":"0.00%"}}]
[null,"Gerais e administrativas","Depreciação",{"$nulls":3},{"$f":"IFERROR(IF(Receita_de_vendas=0,\"-\",DespesasOperacionais[Período atual]/Receita_de_vendas),\"-\")","v":"-"},{"$f":"IFERROR(IF(DespesasOperacionais[[#This Row],[Período anterior]]=DespesasOperacionais[[#This Row],[Período atual]],0,IF(DespesasOperacionais[[#This Row],[Período atual]]>DespesasOperacionais[[#This Row],[Período anterior]],ABS((DespesasOperacionais[[#This Row],[Período atual]]/DespesasOperacionais[[#This Row],[Período anterior]])-1),IF(AND(DespesasOperacionais[[#This Row],[Período atual]]<DespesasOperacionais[[#This Row],[Período anterior]],DespesasOperacionais[[#This Row],[Período anterior]]<0),-((DespesasOperacionais[[#This Row],[Período atual]]/DespesasOperacionais[[#This Row],[Período anterior]])-1),(DespesasOperacionais[[#This Row],[Período atual]]/DespesasOperacionais[[#This Row],[Período anterior]])-1))),\"-\")","v":{"v":0,"d":"0.00%"}},{"$f":"IFERROR(IF(DespesasOperacionais[[#This Row],[Orçamento]]=DespesasOperacionais[[#This Row],[Período atual]],0,IF(DespesasOperacionais[[#This Row],[Período atual]]>DespesasOperacionais[[#This Row],[Orçamento]],ABS((DespesasOperacionais[[#This Row],[Período atual]]/DespesasOperacionais[[#This Row],[Orçamento]])-1),IF(AND(DespesasOperacionais[[#This Row],[Período atual]]<DespesasOperacionais[[#This Row],[Orçamento]],DespesasOperacionais[[#This Row],[Orçamento]]<0),-((DespesasOperacionais[[#This Row],[Período atual]]/DespesasOperacionais[[#This Row],[Orçamento]])-1),(DespesasOperacionais[[#This Row],[Período atual]]/DespesasOperacionais[[#This Row],[Orçamento]])-1))),\"-\")","v":{"v":0,"d":"0.00%"}}]
[null,"Gerais e administrativas","Seguro",{"$nulls":3},{"$f":"IFERROR(IF(Receita_de_vendas=0,\"-\",DespesasOperacionais[Período atual]/Receita_de_vendas),\"-\")","v":"-"},{"$f":"IFERROR(IF(DespesasOperacionais[[#This Row],[Período anterior]]=DespesasOperacionais[[#This Row],[Período atual]],0,IF(DespesasOperacionais[[#This Row],[Período atual]]>DespesasOperacionais[[#This Row],[Período anterior]],ABS((DespesasOperacionais[[#This Row],[Período atual]]/DespesasOperacionais[[#This Row],[Período anterior]])-1),IF(AND(DespesasOperacionais[[#This Row],[Período atual]]<DespesasOperacionais[[#This Row],[Período anterior]],DespesasOperacionais[[#This Row],[Período anterior]]<0),-((DespesasOperacionais[[#This Row],[Período atual]]/DespesasOperacionais[[#This Row],[Período anterior]])-1),(DespesasOperacionais[[#This Row],[Período atual]]/DespesasOperacionais[[#This Row],[Período anterior]])-1))),\"-\")","v":{"v":0,"d":"0.00%"}},{"$f":"IFERROR(IF(DespesasOperacionais[[#This Row],[Orçamento]]=DespesasOperacionais[[#This Row],[Período atual]],0,IF(DespesasOperacionais[[#This Row],[Período atual]]>DespesasOperacionais[[#This Row],[Orçamento]],ABS((DespesasOperacionais[[#This Row],[Período atual]]/DespesasOperacionais[[#This Row],[Orçamento]])-1),IF(AND(DespesasOperacionais[[#This Row],[Período atual]]<DespesasOperacionais[[#This Row],[Orçamento]],DespesasOperacionais[[#This Row],[Orçamento]]<0),-((DespesasOperacionais[[#This Row],[Período atual]]/DespesasOperacionais[[#This Row],[Orçamento]])-1),(DespesasOperacionais[[#This Row],[Período atual]]/DespesasOperacionais[[#This Row],[Orçamento]])-1))),\"-\")","v":{"v":0,"d":"0.00%"}}]
[null,"Gerais e administrativas","Reparos e manutenção",{"$nulls":3},{"$f":"IFERROR(IF(Receita_de_vendas=0,\"-\",DespesasOperacionais[Período atual]/Receita_de_vendas),\"-\")","v":"-"},{"$f":"IFERROR(IF(DespesasOperacionais[[#This Row],[Período anterior]]=DespesasOperacionais[[#This Row],[Período atual]],0,IF(DespesasOperacionais[[#This Row],[Período atual]]>DespesasOperacionais[[#This Row],[Período anterior]],ABS((DespesasOperacionais[[#This Row],[Período atual]]/DespesasOperacionais[[#This Row],[Período anterior]])-1),IF(AND(DespesasOperacionais[[#This Row],[Período atual]]<DespesasOperacionais[[#This Row],[Período anterior]],DespesasOperacionais[[#This Row],[Período anterior]]<0),-((DespesasOperacionais[[#This Row],[Período atual]]/DespesasOperacionais[[#This Row],[Período anterior]])-1),(DespesasOperacionais[[#This Row],[Período atual]]/DespesasOperacionais[[#This Row],[Período anterior]])-1))),\"-\")","v":{"v":0,"d":"0.00%"}},{"$f":"IFERROR(IF(DespesasOperacionais[[#This Row],[Orçamento]]=DespesasOperacionais[[#This Row],[Período atual]],0,IF(DespesasOperacionais[[#This Row],[Período atual]]>DespesasOperacionais[[#This Row],[Orçamento]],ABS((DespesasOperacionais[[#This Row],[Período atual]]/DespesasOperacionais[[#This Row],[Orçamento]])-1),IF(AND(DespesasOperacionais[[#This Row],[Período atual]]<DespesasOperacionais[[#This Row],[Orçamento]],DespesasOperacionais[[#This Row],[Orçamento]]<0),-((DespesasOperacionais[[#This Row],[Período atual]]/DespesasOperacionais[[#This Row],[Orçamento]])-1),(DespesasOperacionais[[#This Row],[Período atual]]/DespesasOperacionais[[#This Row],[Orçamento]])-1))),\"-\")","v":{"v":0,"d":"0.00%"}}]
[null,"Gerais e administrativas","Outras despesas (especificar)",{"$nulls":3},{"$f":"IFERROR(IF(Receita_de_vendas=0,\"-\",DespesasOperacionais[Período atual]/Receita_de_vendas),\"-\")","v":"-"},{"$f":"IFERROR(IF(DespesasOperacionais[[#This Row],[Período anterior]]=DespesasOperacionais[[#This Row],[Período atual]],0,IF(DespesasOperacionais[[#This Row],[Período atual]]>DespesasOperacionais[[#This Row],[Período anterior]],ABS((DespesasOperacionais[[#This Row],[Período atual]]/DespesasOperacionais[[#This Row],[Período anterior]])-1),IF(AND(DespesasOperacionais[[#This Row],[Período atual]]<DespesasOperacionais[[#This Row],[Período anterior]],DespesasOperacionais[[#This Row],[Período anterior]]<0),-((DespesasOperacionais[[#This Row],[Período atual]]/DespesasOperacionais[[#This Row],[Período anterior]])-1),(DespesasOperacionais[[#This Row],[Período atual]]/DespesasOperacionais[[#This Row],[Período anterior]])-1))),\"-\")","v":{"v":0,"d":"0.00%"}},{"$f":"IFERROR(IF(DespesasOperacionais[[#This Row],[Orçamento]]=DespesasOperacionais[[#This Row],[Período atual]],0,IF(DespesasOperacionais[[#This Row],[Período atual]]>DespesasOperacionais[[#This Row],[Orçamento]],ABS((DespesasOperacionais[[#This Row],[Período atual]]/DespesasOperacionais[[#This Row],[Orçamento]])-1),IF(AND(DespesasOperacionais[[#This Row],[Período atual]]<DespesasOperacionais[[#This Row],[Orçamento]],DespesasOperacionais[[#This Row],[Orçamento]]<0),-((DespesasOperacionais[[#This Row],[Período atual]]/DespesasOperacionais[[#This Row],[Orçamento]])-1),(DespesasOperacionais[[#This Row],[Período atual]]/DespesasOperacionais[[#This Row],[Orçamento]])-1))),\"-\")","v":{"v":0,"d":"0.00%"}}]
[null,"Gerais e administrativas","Outras despesas (especificar)",{"$nulls":3},{"$f":"IFERROR(IF(Receita_de_vendas=0,\"-\",DespesasOperacionais[Período atual]/Receita_de_vendas),\"-\")","v":"-"},{"$f":"IFERROR(IF(DespesasOperacionais[[#This Row],[Período anterior]]=DespesasOperacionais[[#This Row],[Período atual]],0,IF(DespesasOperacionais[[#This Row],[Período atual]]>DespesasOperacionais[[#This Row],[Período anterior]],ABS((DespesasOperacionais[[#This Row],[Período atual]]/DespesasOperacionais[[#This Row],[Período anterior]])-1),IF(AND(DespesasOperacionais[[#This Row],[Período atual]]<DespesasOperacionais[[#This Row],[Período anterior]],DespesasOperacionais[[#This Row],[Período anterior]]<0),-((DespesasOperacionais[[#This Row],[Período atual]]/DespesasOperacionais[[#This Row],[Período anterior]])-1),(DespesasOperacionais[[#This Row],[Período atual]]/DespesasOperacionais[[#This Row],[Período anterior]])-1))),\"-\")","v":{"v":0,"d":"0.00%"}},{"$f":"IFERROR(IF(DespesasOperacionais[[#This Row],[Orçamento]]=DespesasOperacionais[[#This Row],[Período atual]],0,IF(DespesasOperacionais[[#This Row],[Período atual]]>DespesasOperacionais[[#This Row],[Orçamento]],ABS((DespesasOperacionais[[#This Row],[Período atual]]/DespesasOperacionais[[#This Row],[Orçamento]])-1),IF(AND(DespesasOperacionais[[#This Row],[Período atual]]<DespesasOperacionais[[#This Row],[Orçamento]],DespesasOperacionais[[#This Row],[Orçamento]]<0),-((DespesasOperacionais[[#This Row],[Período atual]]/DespesasOperacionais[[#This Row],[Orçamento]])-1),(DespesasOperacionais[[#This Row],[Período atual]]/DespesasOperacionais[[#This Row],[Orçamento]])-1))),\"-\")","v":{"v":0,"d":"0.00%"}}]
[null,"Total de despesas operacionais",null,{"$f":"SUBTOTAL(109,DespesasOperacionais[Período anterior])","v":0},{"$f":"SUBTOTAL(109,DespesasOperacionais[Orçamento])","v":0},{"$f":"SUBTOTAL(109,DespesasOperacionais[Período atual])","v":0},{"$f":"SUBTOTAL(109,DespesasOperacionais[Período atual em percentual (%) de vendas])","v":{"v":0,"d":"0.00%"}},{"$f":"SUBTOTAL(109,DespesasOperacionais[Alteração percentual (%) do período anterior])","v":{"v":0,"d":"0.00%"}},{"$f":"SUBTOTAL(109,DespesasOperacionais[Alteração percentual (%) do orçamento])","v":{"v":0,"d":"0.00%"}}]

{"sheet":"Impostos","index":4,"n_rows":10,"n_cols":9,"rows_kept":10,"merged":[[0,7,2,8]]}
[null,{"$f":"Título_da_pasta_de_rabalho","v":"Demonstrativo de lucros e perdas"}]
[null,{"$f":"Nome_Empresa","v":"Nome da empresa"},"Expresso em milhares"]
[null,"Impostos",{"$f":"IFERROR(Impostos[[#Totals],[Período atual]],\"-\")","v":0}]
[null,"Tipo","Descrição","Período anterior","Orçamento","Período atual","Período atual em percentual (%) de vendas","Alteração percentual (%) do período anterior","Alteração percentual (%) do orçamento"]
[null,"Impostos","Imposto de renda",{"$nulls":3},{"$f":"IFERROR(IF(Receita_de_vendas=0,\"-\",Impostos[Período atual]/Receita_de_vendas),\"-\")","v":"-"},{"$f":"IFERROR(IF(Impostos[[#This Row],[Período anterior]]=Impostos[[#This Row],[Período atual]],0,IF(Impostos[[#This Row],[Período atual]]>Impostos[[#This Row],[Período anterior]],ABS((Impostos[[#This Row],[Período atual]]/Impostos[[#This Row],[Período anterior]])-1),IF(AND(Impostos[[#This Row],[Período atual]]<Impostos[[#This Row],[Período anterior]],Impostos[[#This Row],[Período anterior]]<0),-((Impostos[[#This Row],[Período atual]]/Impostos[[#This Row],[Período anterior]])-1),(Impostos[[#This Row],[Período atual]]/Impostos[[#This Row],[Período anterior]])-1))),\"-\")","v":{"v":0,"d":"0.00%"}},{"$f":"IFERROR(IF(Impostos[[#This Row],[Orçamento]]=Impostos[[#This Row],[Período atual]],0,IF(Impostos[[#This Row],[Período atual]]>Impostos[[#This Row],[Orçamento]],ABS((Impostos[[#This Row],[Período atual]]/Impostos[[#This Row],[Orçamento]])-1),IF(AND(Impostos[[#This Row],[Período atual]]<Impostos[[#This Row],[Orçamento]],Impostos[[#This Row],[Orçamento]]<0),-((Impostos[[#This Row],[Período atual]]/Impostos[[#This Row],[Orçamento]])-1),(Impostos[[#This Row],[Período atual]]/Impostos[[#This Row],[Orçamento]])-1))),\"-\")","v":{"v":0,"d":"0.00%"}}]
[null,"Impostos","Impostos sobre folha de pagamento",{"$nulls":3},{"$f":"IFERROR(IF(Receita_de_vendas=0,\"-\",Impostos[Período atual]/Receita_de_vendas),\"-\")","v":"-"},{"$f":"IFERROR(IF(Impostos[[#This Row],[Período anterior]]=Impostos[[#This Row],[Período atual]],0,IF(Impostos[[#This Row],[Período atual]]>Impostos[[#This Row],[Período anterior]],ABS((Impostos[[#This Row],[Período atual]]/Impostos[[#This Row],[Período anterior]])-1),IF(AND(Impostos[[#This Row],[Período atual]]<Impostos[[#This Row],[Período anterior]],Impostos[[#This Row],[Período anterior]]<0),-((Impostos[[#This Row],[Período atual]]/Impostos[[#This Row],[Período anterior]])-1),(Impostos[[#This Row],[Período atual]]/Impostos[[#This Row],[Período anterior]])-1))),\"-\")","v":{"v":0,"d":"0.00%"}},{"$f":"IFERROR(IF(Impostos[[#This Row],[Orçamento]]=Impostos[[#This Row],[Período atual]],0,IF(Impostos[[#This Row],[Período atual]]>Impostos[[#This Row],[Orçamento]],ABS((Impostos[[#This Row],[Período atual]]/Impostos[[#This Row],[Orçamento]])-1),IF(AND(Impostos[[#This Row],[Período atual]]<Impostos[[#This Row],[Orçamento]],Impostos[[#This Row],[Orçamento]]<0),-((Impostos[[#This Row],[Período atual]]/Impostos[[#This Row],[Orçamento]])-1),(Impostos[[#This Row],[Período atual]]/Impostos[[#This Row],[Orçamento]])-1))),\"-\")","v":{"v":0,"d":"0.00%"}}]
[null,"Impostos","Impostos sobre imóveis",{"$nulls":3},{"$f":"IFERROR(IF(Receita_de_vendas=0,\"-\",Impostos[Período atual]/Receita_de_vendas),\"-\")","v":"-"},{"$f":"IFERROR(IF(Impostos[[#This Row],[Período anterior]]=Impostos[[#This Row],[Período atual]],0,IF(Impostos[[#This Row],[Período atual]]>Impostos[[#This Row],[Período anterior]],ABS((Impostos[[#This Row],[Período atual]]/Impostos[[#This Row],[Período anterior]])-1),IF(AND(Impostos[[#This Row],[Período atual]]<Impostos[[#This Row],[Período anterior]],Impostos[[#This Row],[Período anterior]]<0),-((Impostos[[#This Row],[Período atual]]/Impostos[[#This Row],[Período anterior]])-1),(Impostos[[#This Row],[Período atual]]/Impostos[[#This Row],[Período anterior]])-1))),\"-\")","v":{"v":0,"d":"0.00%"}},{"$f":"IFERROR(IF(Impostos[[#This Row],[Orçamento]]=Impostos[[#This Row],[Período atual]],0,IF(Impostos[[#This Row],[Período atual]]>Impostos[[#This Row],[Orçamento]],ABS((Impostos[[#This Row],[Período atual]]/Impostos[[#This Row],[Orçamento]])-1),IF(AND(Impostos[[#This Row],[Período atual]]<Impostos[[#This Row],[Orçamento]],Impostos[[#This Row],[Orçamento]]<0),-((Impostos[[#This Row],[Período atual]]/Impostos[[#This Row],[Orçamento]])-1),(Impostos[[#This Row],[Período atual]]/Impostos[[#This Row],[Orçamento]])-1))),\"-\")","v":{"v":0,"d":"0.00%"}}]
[null,"Impostos","Outros impostos (especificar)",{"$nulls":3},{"$f":"IFERROR(IF(Receita_de_vendas=0,\"-\",Impostos[Período atual]/Receita_de_vendas),\"-\")","v":"-"},{"$f":"IFERROR(IF(Impostos[[#This Row],[Período anterior]]=Impostos[[#This Row],[Período atual]],0,IF(Impostos[[#This Row],[Período atual]]>Impostos[[#This Row],[Período anterior]],ABS((Impostos[[#This Row],[Período atual]]/Impostos[[#This Row],[Período anterior]])-1),IF(AND(Impostos[[#This Row],[Período atual]]<Impostos[[#This Row],[Período anterior]],Impostos[[#This Row],[Período anterior]]<0),-((Impostos[[#This Row],[Período atual]]/Impostos[[#This Row],[Período anterior]])-1),(Impostos[[#This Row],[Período atual]]/Impostos[[#This Row],[Período anterior]])-1))),\"-\")","v":{"v":0,"d":"0.00%"}},{"$f":"IFERROR(IF(Impostos[[#This Row],[Orçamento]]=Impostos[[#This Row],[Período atual]],0,IF(Impostos[[#This Row],[Período atual]]>Impostos[[#This Row],[Orçamento]],ABS((Impostos[[#This Row],[Período atual]]/Impostos[[#This Row],[Orçamento]])-1),IF(AND(Impostos[[#This Row],[Período atual]]<Impostos[[#This Row],[Orçamento]],Impostos[[#This Row],[Orçamento]]<0),-((Impostos[[#This Row],[Período atual]]/Impostos[[#This Row],[Orçamento]])-1),(Impostos[[#This Row],[Período atual]]/Impostos[[#This Row],[Orçamento]])-1))),\"-\")","v":{"v":0,"d":"0.00%"}}]
[null,"Impostos","Outros impostos (especificar)",{"$nulls":3},{"$f":"IFERROR(IF(Receita_de_vendas=0,\"-\",Impostos[Período atual]/Receita_de_vendas),\"-\")","v":"-"},{"$f":"IFERROR(IF(Impostos[[#This Row],[Período anterior]]=Impostos[[#This Row],[Período atual]],0,IF(Impostos[[#This Row],[Período atual]]>Impostos[[#This Row],[Período anterior]],ABS((Impostos[[#This Row],[Período atual]]/Impostos[[#This Row],[Período anterior]])-1),IF(AND(Impostos[[#This Row],[Período atual]]<Impostos[[#This Row],[Período anterior]],Impostos[[#This Row],[Período anterior]]<0),-((Impostos[[#This Row],[Período atual]]/Impostos[[#This Row],[Período anterior]])-1),(Impostos[[#This Row],[Período atual]]/Impostos[[#This Row],[Período anterior]])-1))),\"-\")","v":{"v":0,"d":"0.00%"}},{"$f":"IFERROR(IF(Impostos[[#This Row],[Orçamento]]=Impostos[[#This Row],[Período atual]],0,IF(Impostos[[#This Row],[Período atual]]>Impostos[[#This Row],[Orçamento]],ABS((Impostos[[#This Row],[Período atual]]/Impostos[[#This Row],[Orçamento]])-1),IF(AND(Impostos[[#This Row],[Período atual]]<Impostos[[#This Row],[Orçamento]],Impostos[[#This Row],[Orçamento]]<0),-((Impostos[[#This Row],[Período atual]]/Impostos[[#This Row],[Orçamento]])-1),(Impostos[[#This Row],[Período atual]]/Impostos[[#This Row],[Orçamento]])-1))),\"-\")","v":{"v":0,"d":"0.00%"}}]
[null,"Total de impostos",null,{"$f":"SUBTOTAL(109,Impostos[Período anterior])","v":0},{"$f":"SUBTOTAL(109,Impostos[Orçamento])","v":0},{"$f":"SUBTOTAL(109,Impostos[Período atual])","v":0},{"$f":"IFERROR(SUBTOTAL(109,Impostos[Período atual em percentual (%) de vendas]),\"-\")","v":{"v":0,"d":"0.00%"}},{"$f":"SUBTOTAL(109,Impostos[Alteração percentual (%) do período anterior])","v":{"v":0,"d":"0.00%"}},{"$f":"SUBTOTAL(109,Impostos[Alteração percentual (%) do orçamento])","v":{"v":0,"d":"0.00%"}}]

{"sheet":"Categorias","index":5,"n_rows":8,"n_cols":2,"rows_kept":8}
[null,"Categorias"]
[null,"Receita de vendas"]
[null,"Custo de vendas"]
[null,"Rendimento"]
[null,"Vendas e marketing"]
[null,"Pesquisa e desenvolvimento"]
[null,"Gerais e administrativas"]
[null,"Impostos"]